{"text_format":"1","workbook":"xlsx","n_sheets":1,"sheets":["Tabelle1"],"not_rendered":{"charts":0,"images":1,"macros":1,"external_links":0,"defined_names":75,"comments":0,"pivot_tables":0},"unopened":[],"bounds":{"document_bytes":16777216,"sheet_cells":100000,"rows_first":2000,"rows_last":500,"rows_between":2000,"halvings":0,"cell_chars":16384,"cell_head_chars":4096},"cells_cut":0,"cells_raw":0,"read":"whole","date_system":"1900"}

{"sheet":"Tabelle1","index":0,"n_rows":181,"n_cols":26,"rows_kept":181,"cut":false,"hidden":false,"merged":[[100,2,100,7],[105,2,105,7],[116,2,116,7],[121,2,121,7],[128,1,128,5],[127,5,127,7],[85,2,85,7],[90,2,90,7],[113,1,113,5],[117,0,117,4],[107,1,107,7],[108,1,108,5],[109,1,109,5],[108,6,108,8],[106,5,106,7],[101,5,101,7],[102,1,102,5],[123,1,123,5],[117,5,117,7],[122,5,122,7],[143,1,143,5],[145,1,145,7],[134,1,134,5],[134,6,134,8],[131,2,131,7],[122,0,122,4],[118,1,118,5],[110,5,110,7],[112,0,112,4],[112,5,112,7],[111,1,111,7],[110,0,110,4],[115,2,115,7],[120,2,120,7],[135,1,135,5],[141,1,141,7],[132,5,132,7],[142,0,142,4],[130,2,130,7],[126,2,126,7],[127,0,127,4],[132,0,132,4],[136,1,136,9],[137,1,137,7],[140,1,140,7],[139,1,139,7],[106,0,106,4],[175,25,178,25],[162,0,162,4],[162,5,162,7],[167,0,167,4],[167,5,167,7],[172,0,172,4],[172,5,172,7],[144,0,144,3],[144,4,144,9],[166,7,166,9],[146,1,146,9],[149,5,149,7],[149,1,149,4],[147,1,147,7],[148,1,148,7],[177,1,177,3],[166,5,166,6],[160,7,160,9],[168,6,168,8],[168,1,168,5],[150,1,150,5],[142,5,142,7],[125,2,125,7],[150,6,150,8],[156,1,156,3],[174,4,174,9],[160,28,163,28],[152,4,152,9],[153,7,153,9],[154,7,154,9],[155,7,155,9],[158,7,158,9],[159,7,159,9],[156,5,156,6],[161,5,161,6],[161,7,161,9],[157,0,157,4],[157,5,157,7],[158,1,159,4],[160,1,160,3],[161,1,161,3],[153,1,154,4],[156,7,156,9],[155,1,155,3],[163,6,165,6],[158,6,160,6],[151,1,151,5],[153,6,155,6],[154,5,155,5],[159,5,160,5],[164,5,165,5],[180,1,180,9],[175,5,178,9],[178,1,178,3],[163,1,164,4],[165,1,165,3],[166,1,166,3],[175,1,176,4],[169,4,169,9],[170,1,171,3],[170,4,171,4],[170,5,170,8],[171,5,171,8],[164,7,164,9],[165,7,165,9],[163,7,163,9],[173,6,173,8],[173,1,173,5],[32,1,32,9],[37,2,37,5],[36,4,36,9],[19,5,19,9],[38,2,38,5],[43,1,43,9],[35,1,35,9],[51,7,51,9],[65,1,65,7],[53,7,53,9],[25,5,27,9],[31,1,31,5],[31,6,31,8],[1,7,1,9],[16,1,16,4],[16,5,16,6],[16,8,16,9],[25,1,25,4],[29,1,29,4],[29,5,29,9],[23,5,23,9],[21,5,21,9],[7,3,7,8],[9,3,9,10],[11,7,11,9],[12,7,12,9],[13,7,13,9],[14,7,14,9],[81,5,81,7],[86,5,86,7],[89,2,89,7],[69,2,69,7],[91,5,91,7],[96,5,96,7],[97,1,97,5],[99,2,99,7],[34,2,34,9],[40,2,40,9],[41,4,41,10],[42,4,42,10],[84,2,84,7],[94,2,94,7],[75,2,75,7],[80,2,80,7],[95,2,95,7],[63,1,63,4],[60,1,60,5],[60,6,60,8],[58,1,58,5],[44,4,44,9],[71,5,71,7],[181,0,181,3],[179,4,179,9],[76,0,76,4],[81,0,81,4],[86,0,86,4],[91,0,91,4],[96,0,96,4],[71,0,71,4],[50,1,50,5],[67,1,67,5],[92,1,92,5],[82,1,82,5],[101,0,101,4],[50,7,50,9],[104,2,104,7],[53,1,53,5],[133,1,133,7],[138,1,138,9],[63,6,63,7],[109,6,109,7],[135,6,135,7],[143,6,143,7],[151,6,151,7],[0,9,0,10],[70,2,70,7],[79,2,79,7],[77,1,77,5],[76,5,76,7],[66,1,66,9],[54,7,54,9],[87,1,87,5],[72,1,72,5],[74,2,74,7],[56,1,56,9],[57,1,57,9],[61,1,61,7],[46,2,46,9],[48,2,48,9],[62,1,62,9],[64,1,64,9],[58,7,58,9],[59,7,59,9]]}
["dsfretertret",null,null,null,null,null,null,null,null,1234]
[null,null,null,null,null,null,null,"Direktion des Innern\nAmt für Kindes- und Erwachsenenschutz"]
[null,"Kindes- und Erwachsenenschutz"]
[null,"Rechnungsablage"]
[null,"über das zu verwaltende Einkommen und Vermögen einer"]
[null,"bebeiständeten/bevormundeten Person"]
[]
[null,null,"o","ordentliche Rechnung im Sinne von Art. 410 Abs. 1 ZGB"]
[]
[null,null,"o","Schlussrechnung im Sinne von Art. 425 Abs. 1 ZGB"]
[]
[null,null,null,null,null,"Grund:","o","Volljährigkeit"]
[null,null,null,null,null,null,"o","Todesfall"]
[null,null,null,null,null,null,"o","Wechsel Beistandsperson"]
[null,null,null,null,null,null,"o","Anpassung/Aufhebung Massnahme"]
[]
[null,"Rechnungsperiode ",null,null,null,null,null,"bis"]
[]
[null,"Betroffene Person       "]
[null,null,null,null,"Name:"]
[]
[null,null,null,null,"Vorname:"]
[]
[null,null,null,null,"Geburtsdatum:"]
[]
[null,"Massnahme nach"]
[]
[]
[]
[null,"Beistandsperson"]
[]
[null,{"$f":"+F$20","v":0},null,null,null,null,{"$f":"+F$22","v":0},null,null,{"$f":"+F$24","v":"00:00:00"}]
[null,"Unterzeichnung/Einverständnis der betroffene Person"]
[]
[null,"o","Die betroffene Person kann den Inhalt der Rechnung aus folgendem Grund nicht erfassen:"]
[null,null,null,null,null,null,null,null,null,null,null,null,null,null,null,null,null,null,null,null,null,null,null,null,null,{"$f":"+B36","v":0}]
[]
[null,"o","Die betroffene Person verzichtet            "]
[null,"o","Die betroffene Person verweigert"]
[]
[null,"o","Die Beistandsperson hat die Rechnung mit der betroffenen Person besprochen."]
[null,null,"o",null,"Die betroffene Person ist mit allen Angaben einverstanden"]
[null,null,"o",null,"Die betroffene Person ist mit den folgenden Angaben nicht einverstanden:"]
[null,null,null,null,null,null,null,null,null,null,null,null,null,null,null,null,null,null,null,null,null,null,null,null,null,{"$f":"+B44","v":0}]
[]
[]
[null,"o","Die betroffene Person verzichtet auf eine Kopie der Rechnung."]
[]
[null,"o","Die betroffene Person kann infolge einer körperlichen Beeinträchtigung nicht unterzeichnen."]
[]
[]
[null,"Ort/Datum:",null,null,null,null,null,"betroffene Person"]
[]
[]
[null,"Ort/Datum:"]
[]
[null,"Unterzeichnung Beistandspeson"]
[null,"Die Richtigkeit und Vollständigkeit der nachstehenden Angaben bescheinigt:"]
[]
[null,"Ort/Datum:",null,null,null,null,null,"Unterschrift Beistandsperson"]
[null,{"$f":"+F$20","v":0},null,null,null,null,{"$f":"+F$22","v":0},null,null,{"$f":"+F$24","v":"00:00:00"}]
[null,"VERMÖGENSVERHÄLTNISSE / Bestandesrechnung "]
[]
[null,"1.1 Aktiven",null,null,null,null,"Stand per",null,{"$f":"+I$17","v":"00:00:00"}]
[]
[null,"BEZEICHNUNG / ART",null,null,null,null,null,null,"per Stichtag / Fr.","Vorperiode  / Fr."]
[]
[null,"20 Bankkonten ",null,null,null,null,"o","keine",{"$f":"SUM(I69:I72)","v":0},{"$f":"SUM(J69:J72)","v":0},null,null,null,null,null,null,null,null,null,null,null,null,null,null,null,{"$f":"SUM(Z69:Z72)","v":0}]
[]
["x","- ",null,null,null,null,null,null,0,0,null,null,null,null,null,null,null,null,null,null,null,null,null,null,null,0]
[null,"- ",null,null,null,null,null,null,0,0,null,null,null,null,null,null,null,null,null,null,null,null,null,null,null,0]
[null,null,null,null,null," "]
[null,"21 Postkonten",null,null,null,null,"o","keine",{"$f":"SUM(I74:I77)","v":0},{"$f":"SUM(J74:J77)","v":0},null,null,null,null,null,null,null,null,null,null,null,null,null,null,null,{"$f":"SUM(Z74:Z77)","v":0}]
[]
["x","- ",null,null,null,null,null,null,0,0,null,null,null,null,null,null,null,null,null,null,null,null,null,null,null,0]
[null,"- ",null,null,null,null,null,null,0,0,null,null,null,null,null,null,null,null,null,null,null,null,null,null,null,0]
[]
[null,"30 Wertschriften",null,null,null,null,"o","keine",{"$f":"SUM(I79:I82)","v":0},{"$f":"SUM(J79:J82)","v":0},null,null,null,null,null,null,null,null,null,null,null,null,null,null,null,{"$f":"SUM(Z79:Z82)","v":0}]
[]
["x","- ",null,null,null,null,null,null,0,0,null,null,null,null,null,null,null,null,null,null,null,null,null,null,null,0]
[null,"- ",null,null,null,null,null,null,0,0,null,null,null,null,null,null,null,null,null,null,null,null,null,null,null,0]
[]
[null,"50 Guthaben\n     - Ansprüche gegenüber Dritten, Lebensversicherungen, usw.",null,null,null,null,"o","keine",{"$f":"SUM(I84:I87)","v":0},{"$f":"SUM(J84:J87)","v":0},null,null,null,null,null,null,null,null,null,null,null,null,null,null,null,{"$f":"SUM(Z84:Z87)","v":0}]
[]
["x","- ",null,null,null,null,null,null,0,0,null,null,null,null,null,null,null,null,null,null,null,null,null,null,null,0]
[null,"- ",null,null,null,null,null,null,0,0,null,null,null,null,null,null,null,null,null,null,null,null,null,null,null,0]
[]
[null,"51 Darlehensguthaben",null,null,null,null,"o","keine",{"$f":"SUM(I89:I92)","v":0},{"$f":"SUM(J89:J92)","v":0},null,null,null,null,null,null,null,null,null,null,null,null,null,null,null,{"$f":"SUM(Z89:Z92)","v":0}]
[]
["x","- ",null,null,null,null,null,null,0,0,null,null,null,null,null,null,null,null,null,null,null,null,null,null,null,0]
[null,"- ",null,null,null,null,null,null,0,0,null,null,null,null,null,null,null,null,null,null,null,null,null,null,null,0]
[]
[null,"53 Mobilien mit besonderem Wert \n      - Fahrzeuge, Schmuck, Münzen, Sammlungen, usw.",null,null,null,null,"o","keine",{"$f":"SUM(I94:I97)","v":0},{"$f":"SUM(J94:J97)","v":0},null,null,null,null,null,null,null,null,null,null,null,null,null,null,null,{"$f":"SUM(Z94:Z97)","v":0}]
[]
["x","- ",null,null,null,null,null,null,0,0,null,null,null,null,null,null,null,null,null,null,null,null,null,null,null,0]
[null,"- ",null,null,null,null,null,null,0,0,null,null,null,null,null,null,null,null,null,null,null,null,null,null,null,0]
[]
[null,"55 Liegenschaften \n       - Grundeigentum und Baurechte",null,null,null,null,"o","keine",{"$f":"SUM(I99:I102)","v":0},{"$f":"SUM(J99:J102)","v":0},null,null,null,null,null,null,null,null,null,null,null,null,null,null,null,{"$f":"SUM(Z99:Z102)","v":0}]
[]
["x","- ",null,null,null,null,null,null,0,0,null,null,null,null,null,null,null,null,null,null,null,null,null,null,null,0]
[null,"- ",null,null,null,null,null,null,0,0,null,null,null,null,null,null,null,null,null,null,null,null,null,null,null,0]
[]
[null,"59 Weitere Guthaben  - z.B. Unverteilte Erbschaften oder\n      Haftpflicht-, Renten-, Genugtuungsansprüche usw.",null,null,null,null,"o","keine",{"$f":"SUM(I104:I107)","v":0},{"$f":"SUM(J104:J107)","v":0},null,null,null,null,null,null,null,null,null,null,null,null,null,null,null,{"$f":"SUM(Z104:Z107)","v":0}]
[]
["x","- ",null,null,null,null,null,null,0,0,null,null,null,null,null,null,null,null,null,null,null,null,null,null,null,0]
[null,"- ",null,null,null,null,null,null,0,0,null,null,null,null,null,null,null,null,null,null,null,null,null,null,null,0]
[]
[null,"TOTAL AKTIVEN",null,null,null,null,null,null,{"$f":"+I103+I98+I93+I88+I83+I78+I73+I68","v":0},{"$f":"+J103+J98+J93+J88+J83+J78+J73+J68","v":0},null,null,null,null,null,null,null,null,null,null,null,null,null,null,null,{"$f":"+Z103+Z98+Z93+Z88+Z83+Z78+Z73+Z68","v":0}]
[null,{"$f":"+F$20","v":0},null,null,null,null,{"$f":"+F$22","v":0},null,null,{"$f":"+F$24","v":"00:00:00"}]
[null,"1.2 Passiven",null,null,null,null,"Stand per",null,{"$f":"+I$17","v":"00:00:00"}]
[]
[null,"BEZEICHNUNG / ART",null,null,null,null,null,null,"per Stichtag / Fr.","Vorperiode  / Fr."]
[]
[null,"60 Schulden",null,null,null,null,"o","keine",{"$f":"SUM(I115:I118)","v":0},{"$f":"SUM(J115:J118)","v":0},null,null,null,null,null,null,null,null,null,null,null,null,null,null,null,{"$f":"SUM(Z115:Z118)","v":0}]
[]
["x","- ",null,null,null,null,null,null,0,0,null,null,null,null,null,null,null,null,null,null,null,null,null,null,null,0]
[null,"- ",null,null,null,null,null,null,0,0,null,null,null,null,null,null,null,null,null,null,null,null,null,null,null,0]
[]
[null,"61 Darlehensschulden",null,null,null,null,"o","keine",{"$f":"SUM(I120:I123)","v":0},{"$f":"SUM(J120:J123)","v":0},null,null,null,null,null,null,null,null,null,null,null,null,null,null,null,{"$f":"SUM(Z120:Z123)","v":0}]
[]
["x","- ",null,null,null,null,null,null,0,0,null,null,null,null,null,null,null,null,null,null,null,null,null,null,null,0]
[null,"- ",null,null,null,null,null,null,0,0,null,null,null,null,null,null,null,null,null,null,null,null,null,null,null,0]
[]
[null,"65 Hypothekarschulden",null,null,null,null,"o","keine",{"$f":"SUM(I125:I128)","v":0},{"$f":"SUM(J125:J128)","v":0},null,null,null,null,null,null,null,null,null,null,null,null,null,null,null,{"$f":"SUM(Z125:Z128)","v":0}]
[]
["x","- ",null,null,null,null,null,null,0,0,null,null,null,null,null,null,null,null,null,null,null,null,null,null,null,0]
[null,"- ",null,null,null,null,null,null,0,0,null,null,null,null,null,null,null,null,null,null,null,null,null,null,null,0]
[]
[null,"69 Weitere Verpflichtungen",null,null,null,null,"o","keine",{"$f":"SUM(I130:I133)","v":0},{"$f":"SUM(J130:J133)","v":0},null,null,null,null,null,null,null,null,null,null,null,null,null,null,null,{"$f":"SUM(Z130:Z133)","v":0}]
[]
["x","- ",null,null,null,null,null,null,0,0,null,null,null,null,null,null,null,null,null,null,null,null,null,null,null,0]
[null,"- ",null,null,null,null,null,null,0,0,null,null,null,null,null,null,null,null,null,null,null,null,null,null,null,0]
[]
[null,"TOTAL PASSIVEN",null,null,null,null,null,null,{"$f":"+I124+I119+I114+I129","v":0},{"$f":"+J124+J119+J114+J129","v":0},null,null,null,null,null,null,null,null,null,null,null,null,null,null,null,{"$f":"+Z124+Z119+Z114+Z129","v":0}]
[null,{"$f":"+F$20","v":0},null,null,null,null,{"$f":"+F$22","v":0},null,null,{"$f":"+F$24","v":"00:00:00"}]
[null,"1.3 Zusammenfassung Bestandesrechnung",null,null,null,null,"Stand per",null,{"$f":"+I$17","v":"00:00:00"}]
[]
[null,"BEZEICHNUNG / ART",null,null,null,null,null,null,"per Stichtag / Fr.","Vorperiode  / Fr."]
[]
[null,"Total Aktiven",null,null,null,null,null,null,{"$f":"+I108","v":0},{"$f":"+J108","v":0}]
[null,"Total Passiven",null,null,null,null,null,null,{"$f":"+I134","v":0},{"$f":"+J134","v":0}]
[null,"NETTOVERMÖGEN",null,null,null,null,null,null,{"$f":"+I140-I141","v":0},{"$f":"+J140-J141","v":0}]
[]
[null,"1.4 Vergleichsrechnung",null,null,null,null,"Stand per",null,{"$f":"+I$17","v":"00:00:00"}]
[]
[null,"BEZEICHNUNG / ART",null,null,null,null,null,null,"per Stichtag / Fr.","Vorperiode  / Fr."]
[]
[null,"Nettovermögen per Berichtsperiodenende",null,null,null,null,null,null,{"$f":"+I142","v":0}]
[null,"Nettovermögen Vorperiode",null,null,null,null,null,null,null,{"$f":"+J142","v":0}]
[null,{"$f":"+IF(I150=\"\",\"AB - / ZUNAHME\",IF(I150=0,\"AB - / ZUNAHME\",IF(I150<0,\"A B N A H M E\",\"Z U N A H M E\")))","v":"AB - / ZUNAHME"},null,null,null,"SEIT VORPERIODE",null,null,{"$f":"+I148-J149","v":0}]
[null,{"$f":"+F$20","v":0},null,null,null,null,{"$f":"+F$22","v":0},null,null,{"$f":"+F$24","v":"00:00:00"}]
[null,"2. Guthaben Altersvorsorge",null,null,null,null,"Stand per",null,{"$f":"+I$17","v":"00:00:00"}]
[]
[null,"BVG-Ansprüche",null,null,null,"Gesellschaft:","Adresse"]
[]
[null,"o",null,null,"ja"]
[null,"o",null,null,"keine","Altersguthaben",null,0]
[]
[null,"Freizügig-\nkeitskonten",null,null,null,"Gesellschaft:","Adresse"]
[]
[null,"o",null,null,"ja"]
[null,"o",null,null,"keine","Guthaben",null,0]
[]
[null,"Guthaben Säule 3a",null,null,null,"Gesellschaft:","Adresse"]
[]
[null,"o",null,null,"ja"]
[null,"o",null,null,"keine","Guthaben",null,0]
[]
[null,"3. Steuern"]
[]
[null,"o",null,null,"Steuern","Letzte definitiv veranlagte Steuerperiode (Jahr)"]
[null,null,null,null,null,"Letzte eingereichte Steuererklärung (Jahr)"]
[]
[null,"4. Budget"]
[]
[null,"Monatsbudget erstellt?",null,null,null,"Ein Budget richtet sich primär nach den finanziellen Möglichkeiten sowie den individuellen Gepflogenheiten der betreuten Person. Hilfreich ist es in Fällen, wo die finanziellen Mittel knapp sind; nötig ist es zum Stellen von Gesuchen für Ergänzungsleistungen und/oder für die Unterstützung durch einen Hilfsfonds oder die Beantragung von wirtschaftlicher Hilfe.\n\nGut verständliche und anwendbare Budgetvorgaben  - nach Einkommenshöhe und Personenzahl -  sind z.B. bei der Arbeitsgemeinschaft Schweizerischer Bud-getberatungsstellen (ASB) erhältlich. Ein Überblick über das Angebot dieser Beratungsstelle ist auch über Internet abrufbar. \n\nVgl. zudem das Muster im priMa-Handbuch Anhang Nr. 6. \nDas Budgetblatt steht Ihnen auf unserer Website als Download zur Verfügung.\n"]
[]
[null,"o",null,null,"ja, beiliegend"]
[null,"o"]
[null,null,null,null,"Wenn nein, bitte Begründung wieso kein Budget erstellt wurde:"]
[null,null,null,null,null,null,null,null,null,null,null,null,null,null,null,null,null,null,null,null,null,null,null,null,null,{"$f":"+B181","v":0}]